fUST/lending_fUST_20250810
["ID","MTS","AMOUNT","RATE_DAILY","PERIOD"]
[378196032,1754777486748,-1382.32,0.00025347,2]
[378196033,1754777486758,-4145.95,0.00025347,2]
[378196034,1754777486767,-1604.39,0.00025347,2]
[378196035,1754777486776,-460.0,0.00025347,2]
[378196036,1754777486786,-460.0,0.00025347,2]
[378196037,1754777486795,-460.0,0.00025347,2]
[378196038,1754777486805,-460.0,0.00025347,2]
[378196039,1754777486814,-460.0,0.00025347,2]
[378196040,1754777486823,-460.0,0.00025347,2]
[378196041,1754777486833,-947.95,0.00025347,2]
[378196042,1754777486843,-1247.31,0.00025347,2]
[378196043,1754777486853,-523.55,0.00025347,2]
[378196044,1754777486862,-460.0,0.00025347,2]
[378196045,1754777486871,-1726.4,0.00025347,2]
[378196046,1754777486881,-460.0,0.00025347,2]
[378196047,1754777486890,-460.0,0.00025347,2]
[378196048,1754777486899,-468.79,0.00025347,2]
[378196049,1754777486909,-1383.57,0.00025347,2]
[378196050,1754777486918,-460.0,0.00025347,2]
[378196051,1754777486927,-482.87,0.00025347,2]
[378196052,1754777486936,-460.0,0.00025347,2]
[378196053,1754777486946,-503.78,0.00025347,2]
[378196054,1754777486956,-460.0,0.00025347,2]
[378196055,1754777486966,-460.0,0.00025347,2]
[378196056,1754777486975,-460.0,0.00025347,2]
[378196057,1754777486985,-460.0,0.00025348,2]
[378196058,1754777486995,-360.69061479,0.00025348,2]
[378196059,1754777487004,-460.0,0.00025348,2]
[378196060,1754777487013,-477.17239461,0.00025348,2]
[378196061,1754777487022,-460.0,0.00025348,2]
[378196062,1754777487031,-460.0,0.00025348,2]
[378196063,1754777487040,-442.32341299,0.00025348,2]
[378196064,1754777487050,-460.0,0.00025348,2]
[378196065,1754777487059,-460.0,0.00025348,2]
[378196066,1754777487069,-460.0,0.00025348,2]
[378196067,1754777487078,-460.0,0.00025348,2]
[378196068,1754777487087,-460.0,0.00025348,2]
[378196069,1754777487102,-944.79,0.00025348,2]
[378196070,1754777487111,-460.0,0.00025348,2]
[378196071,1754777487121,-524.27,0.00025348,2]
[378196072,1754777487131,-460.0,0.00025348,2]
[378196074,1754777487140,-460.0,0.00025348,2]
[378196075,1754777487153,-460.0,0.00025348,2]
[378196076,1754777487166,-500.0,0.00025348,2]
[378196077,1754777487176,-1321.06,0.00025348,2]
[378196078,1754777487185,-460.0,0.00025348,2]
[378196079,1754777487194,-678.58,0.00025348,2]
[378196080,1754777487203,-874.9,0.00025348,2]
[378196081,1754777487213,-460.0,0.00025348,2]
[378196082,1754777487222,-460.0,0.00025348,2]
[378196083,1754777487233,-460.0,0.00025348,2]
[378196084,1754777487242,-460.0,0.00025348,2]
[378196085,1754777487252,-460.0,0.00025348,2]
[378196086,1754777487263,-460.0,0.00025348,2]
[378196087,1754777487272,-1052.85,0.00025348,2]
[378196088,1754777487281,-494.25,0.00025348,2]
[378196089,1754777487291,-540.34047343,0.00025348,2]
[378196090,1754777487300,-180.20611319,0.00025349,2]
[378196091,1754777487309,-560.0,0.00025351,2]
[378196092,1754777487318,-250.0,0.00025421,2]
[378196093,1754777487327,-552.0,0.00025436,2]
[378196094,1754777487337,-500.0,0.0002548,2]
[378196095,1754777487347,-820.96,0.00025521,2]
[378196096,1754777487356,-1447.0,0.00025552,2]
[378196097,1754777487365,-151.0,0.00025591,2]
[378196098,1754777487375,-460.0,0.00025621,2]
[378196099,1754777487384,-167.2,0.00025621,2]
[378196100,1754777487393,-460.0,0.00025621,2]
[378196101,1754777487402,-483.49259868,0.00025621,2]
[378196102,1754777487411,-596.13,0.00025621,2]
[378196103,1754777487420,-460.0,0.00025621,2]
[378196104,1754777487430,-460.0,0.00025621,2]
[378196105,1754777487439,-460.0,0.00025621,2]
[378196106,1754777487448,-1088.48,0.00025621,2]
[378196107,1754777487458,-460.0,0.00025621,2]
[378196108,1754777487467,-566.37,0.00025621,2]
[378196109,1754777487477,-974.13,0.00025621,2]
[378196110,1754777487486,-270.76,0.00025621,2]
[378196111,1754777487496,-460.0,0.00025621,2]
[378196112,1754777487505,-460.0,0.00025621,2]
[378196113,1754777487514,-460.0,0.00025621,2]
[378196114,1754777487524,-858.66,0.00025621,2]
[378196115,1754777487533,-2755.0,0.00025621,2]
[378196116,1754777487543,-460.0,0.00025621,2]
[378196117,1754777487551,-1382.32,0.00025621,2]
[378196118,1754777487561,-4145.95,0.00025621,2]
[378196119,1754777487570,-1604.39,0.00025621,2]
[378196120,1754777487579,-460.0,0.00025621,2]
[378196121,1754777487589,-460.0,0.00025621,2]
[378196122,1754777487599,-460.0,0.00025621,2]
[378196123,1754777487608,-460.0,0.00025621,2]
[378196124,1754777487617,-460.0,0.00025621,2]
[378196125,1754777487627,-460.0,0.00025621,2]
[378196126,1754777487635,-947.95,0.00025621,2]
[378196127,1754777487644,-1247.31,0.00025621,2]
[378196128,1754777487654,-523.55,0.00025621,2]
[378196129,1754777487663,-460.0,0.00025621,2]
[378196130,1754777487672,-1726.4,0.00025621,2]
[378196131,1754777487681,-460.0,0.00025621,2]
[378196132,1754777487690,-468.79,0.00025621,2]
[378196133,1754777487700,-1383.57,0.00025621,2]
[378196134,1754777487710,-460.0,0.00025621,2]
[378196135,1754777487719,-482.87,0.00025621,2]
[378196136,1754777487729,-503.78,0.00025621,2]
[378196137,1754777487738,-190.44101548,0.00025621,2]
[378196138,1754777487748,-480.76,0.00025621,2]
[378196139,1754777487758,-400.51,0.00025622,2]
[378196140,1754777487767,-460.0,0.00025622,2]
[378196141,1754777487776,-460.0,0.00025622,2]
[378196142,1754777487786,-460.0,0.00025622,2]
[378196143,1754777487795,-460.0,0.00025622,2]
[378196144,1754777487804,-460.0,0.00025622,2]
[378196145,1754777487813,-460.0,0.00025622,2]
[378196146,1754777487822,-944.79,0.00025622,2]
[378196147,1754777487831,-460.0,0.00025622,2]
[378196148,1754777487840,-524.27,0.00025622,2]
[378196149,1754777487849,-460.0,0.00025622,2]
[378196150,1754777487858,-460.0,0.00025622,2]
[378196151,1754777487867,-460.0,0.00025622,2]
[378196152,1754777487876,-500.0,0.00025622,2]
[378196153,1754777487886,-1321.06,0.00025622,2]
[378196154,1754777487895,-678.58,0.00025622,2]
[378196155,1754777487904,-874.9,0.00025622,2]
[378196156,1754777487914,-460.0,0.00025622,2]
[378196157,1754777488013,-460.0,0.00025622,2]
[378196158,1754777488028,-473.66475752,0.00025622,2]
[378196159,1754777488039,-271.79048291,0.00025622,2]
[378196160,1754777488048,-460.0,0.00025622,2]
[378196161,1754777488057,-460.0,0.00025622,2]
[378196162,1754777488067,-1052.85,0.00025622,2]
[378196163,1754777488076,-494.25,0.00025622,2]
[378196164,1754777488086,-452.06,0.00025648,7]
[378196165,1754777488096,-500.0,0.00025754,2]
[378196166,1754777488106,-820.96,0.00025795,2]
[378196167,1754777488115,-460.0,0.00025895,2]
[378196168,1754777488124,-460.0,0.00025895,2]
[378196169,1754777488133,-596.13,0.00025895,2]
[378196170,1754777488143,-460.0,0.00025895,2]
[378196171,1754777488156,-460.0,0.00025895,2]
[378196172,1754777488165,-460.0,0.00025895,2]
[378196173,1754777488175,-1088.48,0.00025895,2]
[378196174,1754777488184,-460.0,0.00025895,2]
[378196175,1754777488194,-566.37,0.00025895,2]
[378196176,1754777488204,-974.13,0.00025895,2]
[378196177,1754777488213,-460.0,0.00025895,2]
[378196178,1754777488223,-460.0,0.00025895,2]
[378196179,1754777488232,-460.0,0.00025895,2]
[378196180,1754777488241,-858.66,0.00025895,2]
[378196181,1754777488250,-2755.0,0.00025895,2]
[378196182,1754777488260,-460.0,0.00025895,2]
[378196183,1754777488269,-1382.32,0.00025895,2]
[378196184,1754777488278,-4145.95,0.00025895,2]
[378196185,1754777488287,-1604.39,0.00025895,2]
[378196186,1754777488297,-460.0,0.00025895,2]
[378196187,1754777488306,-460.0,0.00025895,2]
[378196188,1754777488316,-460.0,0.00025895,2]
[378196189,1754777488326,-460.0,0.00025895,2]
[378196190,1754777488335,-460.0,0.00025895,2]
[378196191,1754777488344,-482.07716343,0.00025895,2]
[378196192,1754777488354,-947.95,0.00025895,2]
[378196193,1754777488365,-1247.31,0.00025895,2]
[378196194,1754777488375,-523.55,0.00025895,2]
[378196195,1754777488385,-460.0,0.00025895,2]
[378196196,1754777488394,-1726.4,0.00025895,2]
[378196197,1754777488403,-460.0,0.00025895,2]
[378196198,1754777488412,-468.79,0.00025895,2]
[378196199,1754777488421,-1383.57,0.00025895,2]
[378196200,1754777488432,-460.0,0.00025895,2]
[378196201,1754777488441,-482.87,0.00025895,2]
[378196202,1754777488451,-503.78,0.00025895,2]
[378196203,1754777488462,-460.0,0.00025896,2]
[378196204,1754777488471,-460.0,0.00025896,2]
[378196205,1754777488480,-184.9931898,0.00025896,2]
[378196206,1754777488491,-460.0,0.00025896,2]
[378196207,1754777488500,-944.79,0.00025896,2]
[378196208,1754777488510,-460.0,0.00025896,2]
[378196209,1754777488519,-524.27,0.00025896,2]
[378196210,1754777488529,-460.0,0.00025896,2]
[378196211,1754777488538,-460.0,0.00025896,2]
[378196212,1754777488548,-518.3080796,0.00025896,2]
[378196213,1754777488559,-588.32363811,0.00025896,2]
[378196214,1754777488569,-1321.06,0.00025896,2]
[378196215,1754777488578,-678.58,0.00025896,2]
[378196216,1754777488589,-874.9,0.00025896,2]
[378196217,1754777488599,-460.0,0.00025896,2]
[378196218,1754777488608,-460.0,0.00025896,2]
[378196219,1754777488619,-566.7,0.00025896,2]
[378196220,1754777488628,-460.0,0.00025896,2]
[378196221,1754777488638,-1052.85,0.00025896,2]
[378196222,1754777488647,-494.25,0.00025896,2]
[378196223,1754777488656,-660.0,0.00025899,2]
[378196224,1754777488665,-200.0,0.0002596,14]
[378196225,1754777488674,-479.5105082,0.00025968,2]
[378196226,1754777488684,-500.0,0.00026024,2]
[378196227,1754777488693,-500.0,0.00026028,2]
[378196228,1754777488703,-168.0,0.00026036,2]
[378196229,1754777488712,-820.96,0.00026069,2]
[378196230,1754777488722,-460.0,0.00026169,2]
[378196231,1754777488731,-460.0,0.00026169,2]
[378196232,1754777488740,-596.13,0.00026169,2]
[378196233,1754777488750,-460.0,0.00026169,2]
[378196234,1754777488759,-460.0,0.00026169,2]
[378196235,1754777488767,-460.0,0.00026169,2]
[378196236,1754777488777,-1088.48,0.00026169,2]
[378196237,1754777488786,-460.0,0.00026169,2]
[378196238,1754777488795,-566.37,0.00026169,2]
[378196239,1754777488804,-974.13,0.00026169,2]
[378196240,1754777488814,-460.0,0.00026169,2]
[378196241,1754777488823,-460.0,0.00026169,2]
[378196242,1754777488832,-858.66,0.00026169,2]
[378196243,1754777488841,-2755.0,0.00026169,2]
[378196244,1754777488851,-460.0,0.00026169,2]
[378196245,1754777488859,-1382.32,0.00026169,2]
[378196246,1754777488869,-4145.95,0.00026169,2]
[378196247,1754777488878,-1604.39,0.00026169,2]
[378196248,1754777488888,-466.83,0.00026169,2]
[378196249,1754777488897,-460.0,0.00026169,2]
[378196250,1754777488907,-460.0,0.00026169,2]
[378196251,1754777488917,-460.0,0.00026169,2]
[378196252,1754777488926,-244.19,0.00026169,2]
[378196253,1754777488935,-947.95,0.00026169,2]
[378196254,1754777488944,-1247.31,0.00026169,2]
[378196255,1754777488954,-523.55,0.00026169,2]
[378196256,1754777488963,-460.0,0.00026169,2]
[378196257,1754777488972,-1726.4,0.00026169,2]
[378196258,1754777488981,-460.0,0.00026169,2]
[378196259,1754777488991,-468.79,0.00026169,2]
[378196260,1754777489000,-1383.57,0.00026169,2]
[378196261,1754777489009,-468.01,0.00026169,2]
[378196262,1754777489018,-482.87,0.00026169,2]
[378196263,1754777489028,-503.78,0.00026169,2]
[378196264,1754777489037,-460.0,0.0002617,2]
[378196265,1754777489046,-560.73150587,0.0002617,2]
[378196266,1754777489055,-460.0,0.0002617,2]
[378196267,1754777489064,-944.79,0.0002617,2]
[378196268,1754777489073,-460.0,0.0002617,2]
[378196269,1754777489083,-524.27,0.0002617,2]
[378196270,1754777489092,-460.0,0.0002617,2]
[378196271,1754777489101,-549.64,0.0002617,2]
[378196272,1754777489110,-1321.06,0.0002617,2]
[378196273,1754777489119,-678.58,0.0002617,2]
[378196274,1754777489129,-874.9,0.0002617,2]
[378196275,1754777489138,-460.0,0.0002617,2]
[378196276,1754777489148,-556.19,0.0002617,2]
[378196277,1754777489160,-460.0,0.0002617,2]
[378196278,1754777489169,-1052.85,0.0002617,2]
[378196279,1754777489179,-494.25,0.0002617,2]
[378196280,1754777489188,-203.534174,0.000262,2]
[378196281,1754777489199,-168.0,0.0002623,2]
[378196282,1754777489208,-500.0,0.00026302,2]
[378196283,1754777489217,-200.0,0.00026308,15]
[378196284,1754777489228,-200.0,0.00026308,15]
[378196285,1754777489237,-200.0,0.00026308,15]
[378196286,1754777489246,-200.0,0.00026308,15]
[378196287,1754777489255,-200.0,0.00026308,15]
[378196288,1754777489264,-200.0,0.00026308,15]
[378196289,1754777489273,-200.0,0.00026308,15]
[378196290,1754777489282,-200.0,0.00026308,15]
[378196291,1754777489291,-358.0,0.00026308,15]
[378196292,1754777489301,-820.96,0.00026343,2]
[378196293,1754777489310,-154.184865,0.00026431,15]
[378196294,1754777489321,-460.0,0.00026443,2]
[378196295,1754777489330,-460.0,0.00026443,2]
[378196296,1754777489339,-596.13,0.00026443,2]
[378196297,1754777489348,-460.0,0.00026443,2]
[378196298,1754777489357,-460.0,0.00026443,2]
[378196299,1754777489366,-460.0,0.00026443,2]
[378196300,1754777489376,-1088.48,0.00026443,2]
[378196301,1754777489385,-463.57,0.00026443,2]
[378196302,1754777489394,-566.37,0.00026443,2]
[378196303,1754777489403,-974.13,0.00026443,2]
[378196304,1754777489413,-460.0,0.00026443,2]
[378196305,1754777489422,-460.0,0.00026443,2]
[378196306,1754777489431,-858.66,0.00026443,2]
[378196307,1754777489440,-2755.0,0.00026443,2]
[378196308,1754777489450,-460.0,0.00026443,2]
[378196309,1754777489459,-1382.32,0.00026443,2]
[378196310,1754777489468,-4145.95,0.00026443,2]
[378196311,1754777489477,-1604.39,0.00026443,2]
[378196312,1754777489487,-460.0,0.00026443,2]
[378196313,1754777489496,-460.0,0.00026443,2]
[378196314,1754777489506,-274.63,0.00026443,2]
[378196315,1754777489516,-947.95,0.00026443,2]
[378196316,1754777489525,-1247.31,0.00026443,2]
[378196317,1754777489535,-523.55,0.00026443,2]
[378196318,1754777489544,-460.0,0.00026443,2]
[378196319,1754777489553,-1726.4,0.00026443,2]
[378196320,1754777489563,-460.0,0.00026443,2]
[378196321,1754777489572,-468.79,0.00026443,2]
[378196322,1754777489582,-1383.57,0.00026443,2]
[378196323,1754777489593,-482.87,0.00026443,2]
[378196324,1754777489602,-503.78,0.00026443,2]
[378196325,1754777489611,-460.0,0.00026444,2]
[378196326,1754777489620,-460.0,0.00026444,2]
[378196327,1754777489630,-944.79,0.00026444,2]
[378196328,1754777489639,-283.24,0.00026444,2]
[378196329,1754777489647,-524.27,0.00026444,2]
[378196330,1754777489657,-460.0,0.00026444,2]
[378196331,1754777489666,-1321.06,0.00026444,2]
[378196332,1754777489679,-678.58,0.00026444,2]
[378196333,1754777489689,-874.9,0.00026444,2]
[378196334,1754777489817,-460.0,0.00026444,2]
[378196335,1754777489827,-1052.85,0.00026444,2]
[378196336,1754777489836,-494.25,0.00026444,2]
[378196337,1754777489845,-760.0,0.00026447,2]
[378196338,1754777489854,-359.399146,0.00026456,7]
[378196339,1754777489863,-359.399146,0.00026456,7]
[378196340,1754777489873,-500.0,0.00026576,2]
[378196341,1754777489882,-820.96,0.00026617,2]
[378196342,1754777489891,-424.388953,0.00026676,2]
[378196343,1754777489901,-460.0,0.00026717,2]
[378196344,1754777489910,-587.26,0.00026717,2]
[378196345,1754777489919,-596.13,0.00026717,2]
[378196346,1754777489928,-460.0,0.00026717,2]
[378196347,1754777489938,-373.29,0.00026717,2]
[378196348,1754777489948,-300.22863894,0.00026717,2]
[378196349,1754777489958,-1088.48,0.00026717,2]
[378196350,1754777489968,-566.37,0.00026717,2]
[378196351,1754777489978,-974.13,0.00026717,2]
[378196352,1754777489988,-460.0,0.00026717,2]
[378196353,1754777489997,-460.0,0.00026717,2]
[378196354,1754777490007,-858.66,0.00026717,2]
[378196355,1754777490016,-2755.0,0.00026717,2]
[378196356,1754777490026,-460.0,0.00026717,2]
[378196357,1754777490036,-1382.32,0.00026717,2]
[378196358,1754777490046,-4145.95,0.00026717,2]
[378196359,1754777490056,-1604.39,0.00026717,2]
[378196360,1754777490067,-460.0,0.00026717,2]
[378196361,1754777490077,-460.0,0.00026717,2]
[378196362,1754777490090,-947.95,0.00026717,2]
[378196363,1754777490105,-1247.31,0.00026717,2]
[378196364,1754777490115,-523.55,0.00026717,2]
[378196365,1754777490126,-460.0,0.00026717,2]
[378196366,1754777490138,-1726.4,0.00026717,2]
[378196367,1754777490150,-389.16080971,0.00026717,2]
[378196368,1754777490162,-468.79,0.00026717,2]
[378196369,1754777490171,-1383.57,0.00026717,2]
[378196370,1754777490181,-482.87,0.00026717,2]
[378196371,1754777490192,-503.78,0.00026717,2]
[378196372,1754777490201,-460.0,0.00026718,2]
[378196373,1754777490210,-460.0,0.00026718,2]
[378196374,1754777490220,-944.79,0.00026718,2]
[378196375,1754777490229,-524.27,0.00026718,2]
[378196376,1754777490241,-460.0,0.00026718,2]
[378196377,1754777490251,-1321.06,0.00026718,2]
[378196378,1754777490260,-678.58,0.00026718,2]
[378196379,1754777490270,-874.9,0.00026718,2]
[378196380,1754777490279,-460.0,0.00026718,2]
[378196381,1754777490289,-1052.85,0.00026718,2]
[378196382,1754777490298,-494.25,0.00026718,2]
[378196383,1754777490308,-150.0,0.00026849,2]
[378196384,1754777490317,-500.0,0.0002685,2]
[378196385,1754777490327,-193.37,0.00026863,7]
[378196386,1754777490338,-452.06,0.00026863,7]
[378196387,1754777490351,-820.96,0.00026891,2]
[378196388,1754777490360,-160.0,0.00026917,3]
[378196389,1754777490370,-5325.56760186,0.00026918,6]
[378196390,1754777490380,-168.0,0.00026937,2]
[378196391,1754777490389,-151.0,0.0002696,2]
[378196392,1754777490398,-460.0,0.00026991,2]
[378196393,1754777490407,-596.13,0.00026991,2]
[378196394,1754777490417,-258.41,0.00026991,2]
[378196395,1754777490426,-1088.48,0.00026991,2]
[378196396,1754777490436,-566.37,0.00026991,2]
[378196397,1754777490446,-974.13,0.00026991,2]
[378196398,1754777490455,-405.61,0.00026991,2]
[378196399,1754777490465,-460.0,0.00026991,2]
[378196400,1754777490474,-858.66,0.00026991,2]
[378196401,1754777490484,-2755.0,0.00026991,2]
[378196402,1754777490495,-460.0,0.00026991,2]
[378196403,1754777490504,-1382.32,0.00026991,2]
[378196404,1754777490513,-4145.95,0.00026991,2]
[378196405,1754777490523,-1604.39,0.00026991,2]
[378196406,1754777490533,-460.0,0.00026991,2]
[378196407,1754777490542,-460.0,0.00026991,2]
[378196408,1754777490552,-947.95,0.00026991,2]
[378196409,1754777490561,-1247.31,0.00026991,2]
[378196410,1754777490571,-523.55,0.00026991,2]
[378196411,1754777490580,-460.0,0.00026991,2]
[378196412,1754777490590,-1726.4,0.00026991,2]
[378196413,1754777490602,-468.79,0.00026991,2]
[378196414,1754777490611,-1383.57,0.00026991,2]
[378196415,1754777490621,-482.87,0.00026991,2]
[378196416,1754777490642,-503.78,0.00026991,2]
[378196417,1754777490659,-151.0,0.00026992,7]
[378196418,1754777490676,-214.923497,0.00026992,7]
[378196419,1754777490694,-214.923497,0.00026992,7]
[378196420,1754777490712,-460.0,0.00026992,2]
[378196421,1754777490730,-213.34318,0.00026992,7]
[378196422,1754777490748,-213.34318,0.00026992,7]
[378196423,1754777490762,-460.0,0.00026992,2]
[378196424,1754777490779,-944.79,0.00026992,2]
[378196425,1754777490798,-524.27,0.00026992,2]
[378196426,1754777490816,-574.84,0.00026992,2]
[378196427,1754777490829,-1321.06,0.00026992,2]
[378196428,1754777490849,-678.58,0.00026992,2]
[378196429,1754777490864,-874.9,0.00026992,2]
[378196430,1754777490878,-460.0,0.00026992,2]
[378196431,1754777490893,-1052.85,0.00026992,2]
[378196432,1754777490910,-494.25,0.00026992,2]
[378196433,1754777490925,-860.0,0.00026995,2]
[378196434,1754777490940,-12666.14847857,0.00027,3]
[378196435,1754777490955,-231.92402426,0.00027,3]
[378196436,1754777490969,-168.0,0.00027,7]
[378196437,1754777490985,-461.55179734,0.00027,3]
[378196438,1754777491001,-368.0,0.00027003,2]
[378196439,1754777491016,-500.0,0.00027124,2]
[378196440,1754777491032,-368.0,0.00027157,2]
[378196441,1754777491048,-820.96,0.00027165,2]
[378196442,1754777491064,-460.0,0.00027265,2]
[378196443,1754777491078,-596.13,0.00027265,2]
[378196444,1754777491093,-1088.48,0.00027265,2]
[378196445,1754777491110,-566.37,0.00027265,2]
[378196446,1754777491124,-974.13,0.00027265,2]
[378196447,1754777491139,-593.77,0.00027265,2]
[378196448,1754777491150,-858.66,0.00027265,2]
[378196449,1754777491161,-2755.0,0.00027265,2]
[378196450,1754777491171,-460.0,0.00027265,2]
[378196451,1754777491181,-1382.32,0.00027265,2]
[378196452,1754777491191,-4145.95,0.00027265,2]
[378196453,1754777491200,-1604.39,0.00027265,2]
[378196454,1754777491210,-460.0,0.00027265,2]
[378196455,1754777491219,-218.46,0.00027265,2]
[378196456,1754777491232,-947.95,0.00027265,2]
[378196457,1754777491242,-1247.31,0.00027265,2]
[378196458,1754777491251,-523.55,0.00027265,2]
[378196459,1754777491260,-460.0,0.00027265,2]
[378196460,1754777491270,-1726.4,0.00027265,2]
[378196461,1754777491279,-468.79,0.00027265,2]
[378196462,1754777491289,-1383.57,0.00027265,2]
[378196463,1754777491299,-482.87,0.00027265,2]
[378196464,1754777491309,-503.78,0.00027265,2]
[378196465,1754777491320,-151.0,0.00027266,7]
[378196466,1754777491330,-223.617904,0.00027266,7]
[378196467,1754777491340,-460.0,0.00027266,2]
[378196468,1754777491354,-460.0,0.00027266,2]
[378196469,1754777491363,-944.79,0.00027266,2]
[378196470,1754777491372,-524.27,0.00027266,2]
[378196471,1754777491381,-1321.06,0.00027266,2]
[378196472,1754777491392,-678.58,0.00027266,2]
[378196473,1754777491403,-874.9,0.00027266,2]
[378196474,1754777491413,-460.0,0.00027266,2]
[378196475,1754777491423,-1052.85,0.00027266,2]
[378196476,1754777491433,-494.25,0.00027266,2]
[378196477,1754777491443,-368.0,0.0002731,2]
[378196478,1754777491453,-500.0,0.00027325,2]
[378196479,1754777491463,-372.2,0.00027348,2]
[378196480,1754777491474,-1000.0,0.00027397,5]
[378196481,1754777491483,-1000.0,0.00027397,5]
[378196482,1754777491493,-1000.0,0.00027397,5]
[378196483,1754777491502,-395.88121819,0.00027397,5]
[378196484,1754777491512,-460.0,0.00027397,2]
[378196485,1754777491521,-460.0,0.00027397,2]
[378196486,1754777491530,-460.7301771,0.00027397,2]
[378196487,1754777491540,-2957.4,0.00027397,6]
[378196488,1754777491549,-163.4854202,0.00027397,2]
[378196489,1754777491559,-500.0,0.00027397,5]
[378196490,1754777491569,-156.31392988,0.00027397,5]
[378196491,1754777491578,-500.0,0.00027397,5]
[378196492,1754777491587,-500.0,0.00027397,5]
[378196493,1754777491599,-500.0,0.00027398,2]
[378196494,1754777491609,-820.96,0.00027439,2]
[378196495,1754777491619,-151.0,0.000275,7]
[378196496,1754777491628,-214.923497,0.000275,7]
[378196497,1754777491979,-214.923497,0.000275,7]
[378196498,1754777491998,-151.0,0.000275,7]
[378196499,1754777492010,-213.34318,0.000275,7]
[378196500,1754777492022,-213.34318,0.000275,7]
[378196501,1754777492031,-1000.0,0.00027501,10]
[378196502,1754777492042,-1000.0,0.00027501,10]
[378196503,1754777492051,-823.0,0.00027523,2]
[378196504,1754777492060,-460.0,0.00027539,2]
[378196505,1754777492070,-492.99,0.00027539,2]
[378196506,1754777492079,-459.6260294,0.00027539,2]
[378196507,1754777492088,-944.79,0.00027539,2]
[378196508,1754777492100,-524.27,0.00027539,2]
[378196509,1754777492109,-1321.06,0.00027539,2]
[378196510,1754777492118,-596.13,0.00027539,2]
[378196511,1754777492127,-678.58,0.00027539,2]
[378196512,1754777492137,-874.9,0.00027539,2]
[378196513,1754777492147,-460.0,0.00027539,2]
[378196514,1754777492159,-1088.48,0.00027539,2]
[378196515,1754777492168,-566.37,0.00027539,2]
[378196516,1754777492177,-974.13,0.00027539,2]
[378196517,1754777492188,-858.66,0.00027539,2]
[378196518,1754777492198,-2755.0,0.00027539,2]
[378196519,1754777492207,-193.0,0.00027539,2]
[378196520,1754777492216,-1382.32,0.00027539,2]
[378196521,1754777492226,-4145.95,0.00027539,2]
[378196522,1754777492236,-1052.85,0.00027539,2]
[378196523,1754777492246,-1604.39,0.00027539,2]
[378196524,1754777492255,-494.25,0.00027539,2]
[378196525,1754777492265,-415.31,0.00027539,2]
[378196526,1754777492275,-947.95,0.00027539,2]
[378196527,1754777492284,-1247.31,0.00027539,2]
[378196528,1754777492293,-523.55,0.00027539,2]
[378196529,1754777492303,-460.0,0.00027539,2]
[378196530,1754777492312,-1726.4,0.00027539,2]
[378196531,1754777492322,-468.79,0.00027539,2]
[378196532,1754777492332,-1383.57,0.00027539,2]